bitfinex/quotes_SOLUSD_20230113
["timestamp","ask_amount","ask_price","bid_price","bid_amount"]
[1673648279018,40.59,18.37,18.356,20.0]
[1673648279222,40.59,18.37,18.351,20.0]
[1673648279980,17.9831851,18.377,18.352,205.1564928]
[1673648280189,17.9831851,18.377,18.353,20.0]
[1673648280412,17.9831851,18.377,18.354,168.9]
[1673648280602,17.9831851,18.377,18.355,20.0]
[1673648280811,17.9831851,18.377,18.356,117.9025]
[1673648281127,17.9831851,18.377,18.357,49.9691928]
[1673648281659,40.59,18.37,18.357,20.0]
[1673648281876,40.59,18.37,18.354,29.9691928]
[1673648282075,20.0,18.369,18.354,29.9691928]
[1673648282810,20.0,18.369,18.35,109.299]
[1673648283025,20.0,18.369,18.344,117.9025]
[1673648284084,20.0,18.369,18.344,286.8025]
[1673648284494,20.0,18.369,18.344,316.7716928]
[1673648285332,20.0,18.369,18.345,20.0]
[1673648285759,49.9691928,18.369,18.345,20.0]
[1673648285964,40.59,18.36,18.34,117.8996]
[1673648286289,20.0,18.359,18.34,117.8996]
[1673648287443,19.0,18.359,18.34,117.8996]
[1673648288067,19.0,18.359,18.332,118.8174]
[1673648288289,3.0775449,18.358,18.332,118.8174]
[1673648288807,27.08104643,18.381,18.34,40.42]
[1673648289026,156.7799,18.38,18.341,195.19107]
[1673648289216,186.7490928,18.38,18.342,6.29073]
[1673648289432,156.7799,18.38,18.344,168.9]
[1673648289632,156.7799,18.38,18.345,26.2897]
[1673648289843,156.7799,18.38,18.346,6.28936]
[1673648290064,156.7799,18.38,18.347,20.0]
[1673648290278,156.7799,18.38,18.348,175.18867]
[1673648290625,156.7799,18.38,18.349,26.28833]
[1673648290786,156.7799,18.38,18.35,168.9]
[1673648290996,156.7799,18.38,18.351,20.0]
[1673648291214,156.7799,18.38,18.352,112.7339]
[1673648291424,156.7799,18.38,18.353,20.0]
[1673648292053,156.7799,18.38,18.353,49.9691928]
[1673648292261,156.7799,18.38,18.353,218.8691928]
[1673648292474,156.7799,18.38,18.353,264.00838838]
[1673648293756,156.7799,18.38,18.353,263.00838838]
[1673648294070,156.7799,18.38,18.353,64.13919558]
[1673648294285,47.9523779,18.377,18.353,64.13919558]
[1673648294503,17.9831851,18.377,18.353,64.13919558]
[1673648294825,17.9831851,18.377,18.353,45.13919558]
[1673648295005,40.34,18.37,18.34,40.42]
[1673648295216,20.0,18.369,18.341,288.09087]
[1673648295424,20.0,18.369,18.342,6.29073]
[1673648295650,20.0,18.369,18.343,168.9]
[1673648295866,20.0,18.369,18.344,6.29004]
[1673648296390,20.0,18.369,18.345,168.9]
[1673648296597,20.0,18.369,18.345,198.8691928]
[1673648296807,20.0,18.369,18.346,29.9691928]
[1673648297652,49.9691928,18.369,18.344,6.29004]
[1673648297841,40.59,18.36,18.342,29.9691928]
[1673648298051,20.0,18.359,18.342,29.9691928]
[1673648298473,20.0,18.359,18.341,112.8998]
[1673648299533,20.0,18.359,18.34,109.4622]
[1673648300162,20.0,18.359,18.334,29.9691928]
[1673648300371,40.59,18.35,18.335,29.9691928]
[1673648300596,20.0,18.349,18.331,113.3999]
[1673648300909,40.59,18.35,18.331,113.3999]
[1673648302054,40.59,18.35,18.332,168.9]
[1673648302265,40.59,18.35,18.333,20.0]
[1673648302798,103.0545,18.359,18.333,20.0]
[1673648303010,40.59,18.36,18.333,20.0]
[1673648303226,20.0,18.359,18.333,20.0]
[1673648304171,20.0,18.359,18.333,19.5]
[1673648306366,20.0,18.359,18.334,168.9]
[1673648306580,20.0,18.359,18.335,20.0]
[1673648307116,20.0,18.359,18.337,168.9]
[1673648307332,20.0,18.359,18.338,20.0]
[1673648307644,20.0,18.359,18.338,49.9691928]
[1673648307843,20.0,18.359,18.339,29.9691928]
[1673648308044,20.0,18.359,18.331,113.3999]
[1673648308259,20.0,18.359,18.332,20.0]
[1673648308466,20.0,18.359,18.332,19.0]
[1673648309112,20.0,18.359,18.332,187.9]
[1673648309846,20.0,18.359,18.332,168.9]
[1673648310348,20.0,18.359,18.333,20.0]
[1673648310563,20.0,18.359,18.332,168.9]
[1673648310775,20.0,18.359,18.333,20.0]
[1673648312560,20.0,18.359,18.332,168.9]
[1673648312772,20.0,18.359,18.333,20.0]
[1673648313209,20.0,18.359,18.332,175.19416]
[1673648313210,20.0,18.359,18.332,6.29416]
[1673648313520,20.0,18.359,18.331,113.3999]
[1673648313521,1.5,18.349,18.331,113.3999]
[1673648313720,21.5,18.349,18.331,113.3999]
[1673648314356,20.0,18.349,18.331,113.3999]
[1673648314977,1.5,18.348,18.321,168.9]
[1673648315203,1.5,18.348,18.322,283.2802]
[1673648315413,1.5,18.348,18.322,114.3802]
[1673648315414,40.59,18.34,18.322,114.3802]
[1673648316033,40.59,18.34,18.322,283.2802]
[1673648316235,40.59,18.34,18.323,20.0]
[1673648319306,20.0,18.339,18.322,114.3802]
[1673648319509,20.0,18.339,18.32,108.2602]
[1673648320141,20.0,18.339,18.313,168.9]
[1673648320351,20.0,18.339,18.313,175.20069]
[1673648320564,20.0,18.339,18.313,133.3643019]
[1673648321288,20.0,18.339,18.315,127.0636119]
[1673648321502,20.0,18.339,18.316,6.29966]
[1673648322877,20.0,18.339,18.317,20.0]
[1673648324348,20.0,18.339,18.313,127.0636119]
[1673648325486,29.9691928,18.338,18.313,127.0636119]
[1673648325706,20.0,18.337,18.313,127.0636119]
[1673648326122,49.9691928,18.337,18.313,127.0636119]
[1673648326870,40.59,18.33,18.313,127.0636119]
[1673648327079,20.0,18.329,18.313,127.0636119]
[1673648327798,20.0,18.329,18.312,282.5315]
[1673648328744,20.0,18.329,18.312,282.0315]
[1673648329073,20.0,18.329,18.312,113.1315]
[1673648329794,0.64875969,18.328,18.312,113.1315]
[1673648329999,20.0,18.329,18.312,113.1315]
[1673648330323,29.9691928,18.328,18.312,113.1315]
[1673648330531,0.84297903,18.327,18.312,113.1315]
[1673648330956,29.9691928,18.326,18.3,152.0731]
[1673648331170,40.59,18.32,18.301,193.0201303]
[1673648331378,1.22516909,18.319,18.301,173.0201303]
[1673648331601,21.22516909,18.319,18.301,173.0201303]
[1673648332344,40.59,18.32,18.301,173.0201303]
[1673648333691,40.59,18.32,18.302,20.0]
[1673648333920,29.9691928,18.327,18.302,20.0]
[1673648334235,29.9691928,18.327,18.303,119.681]
[1673648334554,40.59,18.33,18.304,20.0]
[1673648334766,20.0,18.329,18.304,20.0]
[1673648336114,29.9691928,18.328,18.304,20.0]
[1673648336322,29.9691928,18.328,18.304,188.9]
[1673648336965,20.0,18.329,18.304,188.9]
[1673648337602,20.0,18.329,18.304,20.0]
[1673648337915,20.0,18.329,18.304,188.9]
[1673648337916,49.9691928,18.329,18.304,188.9]
[1673648338328,49.9691928,18.329,18.304,20.0]
[1673648340335,20.0,18.329,18.304,20.0]
[1673648342320,70.5591928,18.33,18.304,20.0]
[1673648342530,40.59,18.33,18.305,6.30344]
[1673648342856,40.59,18.33,18.307,0.8529442]
[1673648343062,40.59,18.33,18.308,6.30241]
[1673648343284,40.59,18.33,18.31,0.96300481]
[1673648343483,40.59,18.33,18.311,6.30138]
[1673648343702,40.59,18.33,18.313,2.38819773]
[1673648344543,40.59,18.34,18.313,2.38819773]
[1673648344751,43.5279,18.35,18.321,3.0775449]
[1673648344979,40.34,18.35,18.324,3.0775449]
[1673648345162,40.34,18.35,18.325,6.29656]
[1673648345371,40.34,18.35,18.326,3.0775449]
[1673648345582,40.34,18.35,18.326,208.2429577]
[1673648345804,40.34,18.35,18.328,3.0775449]
[1673648346427,40.34,18.35,18.33,3.0775449]
[1673648346757,40.34,18.35,18.331,29.9691928]
[1673648346955,40.34,18.35,18.332,23.0775449]
[1673648347150,150.9609,18.36,18.332,302.0844449]
[1673648347578,150.9609,18.36,18.333,36.2630128]
[1673648347893,180.9300928,18.36,18.334,23.0775449]
[1673648348103,180.9300928,18.36,18.334,53.0467377]
[1673648348734,180.9300928,18.36,18.334,33.0467377]
[1673648349072,180.9300928,18.36,18.335,168.9]
[1673648349265,180.9300928,18.36,18.336,23.0775449]
[1673648349266,150.9609,18.36,18.336,23.0775449]
[1673648349787,150.9609,18.36,18.336,53.0467377]
[1673648350214,20.0,18.359,18.336,23.0775449]
[1673648352424,20.0,18.359,18.336,53.0467377]
[1673648352623,20.0,18.359,18.336,218.8691928]
[1673648352832,20.0,18.359,18.337,3.0775449]
[1673648353041,20.0,18.359,18.336,218.8691928]
[1673648353262,20.0,18.359,18.337,29.9691928]
[1673648353470,20.0,18.359,18.339,0.63284417]
[1673648353681,20.0,18.359,18.338,20.0]
[1673648353912,20.0,18.359,18.339,0.74122822]
[1673648354521,20.0,18.359,18.338,49.9691928]
[1673648354731,20.0,18.359,18.338,20.0]
[1673648354939,20.0,18.359,18.332,110.1069]
[1673648354940,20.0,18.359,18.336,198.8691928]
[1673648355167,40.46,18.36,18.337,26.29244]
[1673648355483,40.46,18.36,18.34,1.50182253]
[1673648355694,40.46,18.36,18.338,1.50182253]
[1673648356092,40.46,18.36,18.34,168.9]
[1673648356307,103.6739,18.37,18.342,1.14841815]
[1673648356530,103.6739,18.37,18.342,170.04841815]
[1673648356743,133.6430928,18.37,18.344,1.14841815]
[1673648356953,133.6430928,18.37,18.346,1.14841815]
[1673648357161,133.6430928,18.37,18.346,21.14841815]
[1673648357688,20.0,18.369,18.346,21.14841815]
[1673648358412,20.0,18.369,18.346,20.0]
[1673648359893,40.59,18.37,18.346,20.0]
[1673648360085,40.59,18.37,18.347,0.6275921]
[1673648360306,40.59,18.37,18.346,20.0]
[1673648361030,40.59,18.37,18.347,29.9691928]
[1673648361245,20.0,18.369,18.348,26.28867]
[1673648361683,20.0,18.369,18.349,29.9691928]
[1673648361923,20.0,18.369,18.351,0.71025684]
[1673648362293,20.0,18.369,18.35,20.0]
[1673648362509,20.0,18.369,18.349,20.0]
[1673648362724,40.59,18.37,18.351,29.9691928]
[1673648362931,40.59,18.37,18.347,20.0]
[1673648363151,40.59,18.37,18.347,6.28901]
[1673648363346,40.59,18.37,18.348,49.9691928]
[1673648363775,17.9831851,18.377,18.35,0.64892896]
[1673648363973,17.9831851,18.377,18.35,121.79110896]
[1673648364189,17.9831851,18.377,18.352,0.81313761]
[1673648364404,17.9831851,18.377,18.352,6.2873]
[1673648364626,17.9831851,18.377,18.353,49.9691928]
[1673648364938,17.9831851,18.377,18.354,29.9691928]
[1673648365162,17.9831851,18.377,18.354,145.8143928]
[1673648365343,17.9831851,18.377,18.355,20.60589242]
[1673648365553,17.9831851,18.377,18.355,49.9691928]
[1673648365773,17.9831851,18.377,18.356,31.05052378]
[1673648366098,17.9831851,18.377,18.355,20.0]
[1673648366099,17.9831851,18.377,18.358,1.62910634]
[1673648366291,17.9831851,18.377,18.358,27.91434634]
[1673648366500,17.9831851,18.377,18.358,57.88353914]
[1673648366702,17.9831851,18.377,18.358,56.2544328]
[1673648367459,17.9831851,18.377,18.359,168.9]
[1673648367659,17.9831851,18.377,18.359,175.1849]
[1673648367864,17.9831851,18.377,18.36,20.0]
[1673648368074,17.9831851,18.377,18.36,129.4948]
[1673648368500,17.9831851,18.377,18.36,298.3948]
[1673648369128,17.9831851,18.377,18.361,6.28422]
[1673648369341,17.9831851,18.377,18.362,188.9]
[1673648369564,17.9831851,18.377,18.362,218.8691928]
[1673648369786,17.9831851,18.377,18.364,168.9]
[1673648370099,17.9831851,18.377,18.365,29.9691928]
[1673648370419,17.9831851,18.377,18.363,6.28353]
[1673648370826,17.9831851,18.377,18.36,109.4948]
[1673648371040,17.9831851,18.377,18.355,116.5273]
[1673648371365,40.34,18.37,18.35,114.8542]
[1673648371553,40.34,18.37,18.351,6.28764]
[1673648371772,20.0,18.369,18.341,285.4273]
[1673648371979,49.9691928,18.369,18.341,116.5273]
[1673648372214,40.34,18.36,18.341,116.5273]
[1673648372739,20.0,18.359,18.341,116.5273]
[1673648372942,49.9691928,18.359,18.331,168.9]
[1673648373132,29.9691928,18.358,18.331,168.9]
[1673648373344,20.0,18.359,18.332,6.29416]
[1673648373566,49.9691928,18.359,18.332,6.29416]
[1673648375555,49.9691928,18.359,18.333,117.9963]
[1673648376593,40.34,18.36,18.334,168.9]
[1673648377669,40.59,18.37,18.34,40.42]
[1673648377887,40.59,18.37,18.341,195.19107]
[1673648378070,40.59,18.37,18.341,26.29107]
[1673648379138,20.0,18.369,18.341,26.29107]
[1673648379455,20.0,18.369,18.342,6.29073]
[1673648379658,20.0,18.369,18.343,20.0]
[1673648379878,20.0,18.369,18.344,110.5331]
[1673648380073,20.0,18.369,18.344,279.4331]
[1673648380284,40.59,18.37,18.345,20.0]
[1673648381139,29.9691928,18.369,18.346,88.77035756]
[1673648381353,40.34,18.36,18.346,41.29344824]
[1673648381564,40.34,18.36,18.344,110.5331]
[1673648381871,20.0,18.359,18.344,110.5331]
[1673648383868,40.34,18.36,18.344,110.5331]
[1673648384082,40.59,18.36,18.34,110.395]
[1673648384902,40.59,18.36,18.333,291.36621703]
[1673648385118,40.59,18.36,18.334,20.0]
[1673648385443,20.0,18.359,18.334,20.0]
[1673648386489,49.9691928,18.359,18.334,20.0]
[1673648386699,20.0,18.359,18.334,20.0]
[1673648387757,20.0,18.359,18.336,168.9]
[1673648388081,20.0,18.359,18.337,20.0]
[1673648389435,20.0,18.359,18.338,51.20357599]
[1673648389649,29.9691928,18.358,18.331,285.7323]
[1673648389865,40.34,18.35,18.331,285.7323]
[1673648390183,20.0,18.349,18.331,285.7323]
[1673648390902,20.0,18.349,18.332,6.29416]
[1673648391322,20.0,18.359,18.332,226.39773599]
[1673648391842,40.59,18.36,18.332,205.1633528]
[1673648392047,40.59,18.36,18.333,56.54232932]
[1673648392262,40.59,18.36,18.334,195.19347]
[1673648392575,40.59,18.36,18.336,168.9]
[1673648392807,40.59,18.36,18.337,20.0]
[1673648393206,40.59,18.36,18.336,168.9]
[1673648393418,40.59,18.37,18.339,168.9]
[1673648393632,40.59,18.37,18.34,26.29141]
[1673648393838,40.59,18.37,18.341,168.9]
[1673648394047,40.59,18.37,18.342,20.0]
[1673648394258,40.59,18.37,18.343,6.29038]
[1673648394478,40.59,18.37,18.345,168.9]
[1673648394678,40.59,18.37,18.346,20.0]
[1673648395638,40.46,18.38,18.348,1.89805795]
[1673648395855,40.34,18.37,18.349,6.28833]
[1673648396270,40.34,18.37,18.345,168.9]
[1673648396691,40.34,18.37,18.344,118.7424]
[1673648397094,20.0,18.369,18.344,168.99090932]
[1673648397632,20.0,18.369,18.345,20.0]
[1673648398476,20.0,18.369,18.345,188.9]
[1673648398892,20.0,18.369,18.338,50.24850932]
[1673648399105,40.59,18.36,18.338,50.24850932]
[1673648399431,40.59,18.35,18.331,115.1298]
[1673648399641,20.0,18.349,18.331,115.1298]
[1673648402367,40.59,18.35,18.331,115.1298]
[1673648404146,40.59,18.35,18.332,48.22678157]
[1673648404351,20.0,18.349,18.321,118.116]
[1673648404566,20.0,18.349,18.327,48.22678157]
[1673648404772,20.0,18.349,18.328,20.0]
[1673648405300,20.0,18.349,18.329,48.22678157]
[1673648405510,20.0,18.349,18.33,20.0]
[1673648406144,20.0,18.349,18.323,20.0]
[1673648406581,20.0,18.349,18.323,26.29725]
[1673648406782,20.0,18.349,18.324,6.29691]
[1673648407009,20.0,18.349,18.325,20.0]
[1673648407208,20.0,18.349,18.325,26.29656]
[1673648407835,40.59,18.35,18.326,6.29622]
[1673648408049,40.59,18.35,18.327,20.0]
[1673648408262,40.59,18.35,18.328,6.29553]
[1673648408790,40.59,18.35,18.329,20.0]
[1673648408999,40.59,18.35,18.329,6.29519]
[1673648409213,20.0,18.349,18.329,6.29519]
[1673648409635,40.59,18.36,18.329,6.29519]
[1673648409830,40.59,18.36,18.331,168.9]
[1673648410162,40.59,18.36,18.333,168.9]
[1673648410358,40.59,18.36,18.334,20.0]
[1673648410795,20.0,18.359,18.334,20.0]
[1673648411206,20.0,18.359,18.333,6.29382]
[1673648411944,20.0,18.359,18.334,168.9]
[1673648412154,20.0,18.359,18.333,6.29382]
[1673648412569,20.0,18.359,18.333,175.19382]
[1673648412779,20.0,18.359,18.334,20.0]
[1673648414264,20.0,18.359,18.333,6.29382]
[1673648414679,40.59,18.36,18.333,6.29382]
[1673648415016,40.34,18.35,18.332,112.4986]
[1673648415323,40.59,18.36,18.332,112.4986]
[1673648415845,40.59,18.36,18.333,188.9]
[1673648416057,40.59,18.36,18.333,195.19382]
[1673648416766,20.0,18.359,18.333,195.19382]
[1673648417616,20.0,18.359,18.334,6.29347]
[1673648417826,20.0,18.359,18.335,20.0]
[1673648418038,20.0,18.359,18.335,26.29313]
[1673648419525,40.34,18.35,18.335,6.29313]
[1673648419720,20.0,18.349,18.332,112.4986]
[1673648420138,40.34,18.35,18.332,112.4986]
[1673648420468,40.34,18.35,18.332,281.3986]
[1673648421729,40.34,18.35,18.333,20.0]
[1673648421936,40.34,18.35,18.334,6.29347]
[1673648422338,40.34,18.35,18.335,20.0]
[1673648422990,40.34,18.35,18.335,19.0]
[1673648423183,40.59,18.36,18.335,19.0]
[1673648423402,20.0,18.359,18.335,19.0]
[1673648425819,40.59,18.35,18.335,19.0]
[1673648426254,20.0,18.359,18.333,20.0]
[1673648426467,29.9691928,18.356,18.333,20.0]
[1673648426657,20.0,18.359,18.333,20.0]
[1673648426868,49.9691928,18.359,18.333,20.0]
[1673648428672,20.0,18.359,18.334,29.9691928]
[1673648428992,20.0,18.359,18.335,20.0]
[1673648429187,20.0,18.359,18.333,20.0]
[1673648429597,49.9691928,18.359,18.333,20.0]
[1673648430444,29.9691928,18.358,18.333,20.0]
[1673648430668,40.59,18.35,18.332,112.4986]
[1673648430863,20.0,18.349,18.332,112.4986]
[1673648431201,40.59,18.35,18.332,112.4986]
[1673648431717,40.59,18.35,18.333,168.9]
[1673648432339,40.59,18.35,18.334,20.0]
[1673648433723,20.0,18.359,18.334,20.0]
[1673648434343,49.9691928,18.359,18.334,20.0]
[1673648436663,29.9691928,18.359,18.334,20.0]
[1673648436863,104.1756,18.37,18.341,168.9]
[1673648437188,134.1447928,18.37,18.343,0.65683367]
[1673648437507,134.1447928,18.37,18.344,6.29004]
[1673648437713,134.1447928,18.37,18.347,1.0131605]
[1673648437925,134.1447928,18.37,18.347,21.0131605]
[1673648438121,101.2143,18.38,18.348,6.28867]
[1673648438334,101.2143,18.38,18.351,168.9]
[1673648438656,29.9691928,18.379,18.352,2.5586413]
[1673648438862,47.9523779,18.377,18.352,28.8459413]
[1673648439063,47.9523779,18.377,18.352,8.8459413]
[1673648439269,17.9831851,18.377,18.352,8.8459413]
[1673648439485,47.9523779,18.377,18.352,8.8459413]
[1673648439712,17.9831851,18.377,18.352,8.8459413]
[1673648439911,17.9831851,18.377,18.354,168.9]
[1673648440124,17.9831851,18.377,18.356,168.9]
[1673648440428,17.9831851,18.377,18.357,9.23450016]
[1673648440656,17.9831851,18.377,18.358,26.28524]
[1673648440979,17.9831851,18.377,18.359,2.94891016]
[1673648441810,17.9831851,18.377,18.361,168.9]
[1673648442021,17.9831851,18.377,18.362,20.0]
[1673648442529,17.9831851,18.377,18.362,26.28388]
[1673648443797,17.9831851,18.377,18.363,6.28353]
[1673648444119,17.9831851,18.377,18.364,188.9]
[1673648444327,17.9831851,18.377,18.364,195.18319]
[1673648445915,17.9831851,18.377,18.366,168.9]
[1673648446110,17.9831851,18.377,18.367,20.0]
[1673648446319,17.9831851,18.377,18.368,168.9]
[1673648446530,17.9831851,18.377,18.369,20.0]
[1673648447583,17.9831851,18.377,18.367,168.9]
[1673648447788,17.9831851,18.377,18.368,20.0]
[1673648448434,17.9831851,18.377,18.368,67.0493696]
[1673648448955,17.9831851,18.377,18.34,153.8224]
[1673648449174,40.59,18.37,18.341,118.18877]
[1673648449391,40.59,18.37,18.342,6.29073]
[1673648449598,29.9691928,18.369,18.342,6.29073]
[1673648449919,29.9691928,18.369,18.344,168.9]
[1673648450129,29.9691928,18.369,18.345,6.2897]
[1673648450344,17.9831851,18.377,18.345,6.2897]
[1673648450345,33.02929006,18.374,18.345,6.2897]
[1673648450528,20.0,18.373,18.345,6.2897]
[1673648450958,29.9691928,18.372,18.345,6.2897]
[1673648451173,40.59,18.37,18.345,6.2897]
[1673648451381,20.0,18.369,18.345,6.2897]
[1673648451702,49.9691928,18.369,18.345,6.2897]
[1673648451898,29.9691928,18.368,18.345,6.2897]
[1673648452537,29.9691928,18.368,18.341,280.7977]
[1673648454214,29.9691928,18.368,18.341,336.8867464]
[1673648454424,29.9691928,18.368,18.342,6.29073]
[1673648454624,40.59,18.37,18.343,20.0]
[1673648454841,40.52,18.38,18.351,168.9]
[1673648455045,40.52,18.38,18.351,175.18764]
[1673648455271,51.01247516,18.377,18.351,175.18764]
[1673648455465,17.9831851,18.377,18.351,6.28764]
[1673648455682,17.9831851,18.377,18.347,168.9]
[1673648456009,29.9691928,18.376,18.348,20.0]
[1673648456200,20.0,18.375,18.348,56.0890464]
[1673648456413,20.0,18.375,18.347,45.56915757]
[1673648456414,40.59,18.37,18.343,20.0]
[1673648456634,20.0,18.369,18.344,6.29004]
[1673648456843,49.9691928,18.369,18.345,20.0]
[1673648457158,29.9691928,18.368,18.345,20.0]
[1673648457357,40.59,18.37,18.346,6.28936]
[1673648457694,29.9691928,18.369,18.347,20.0]
[1673648458310,40.34,18.37,18.342,168.9]
[1673648458526,29.9691928,18.369,18.342,175.19073]
[1673648458737,20.0,18.368,18.342,175.19073]
[1673648459153,29.9691928,18.367,18.342,175.19073]
[1673648459354,20.0,18.366,18.342,175.19073]
[1673648459790,29.9691928,18.365,18.342,175.19073]
[1673648460233,40.34,18.37,18.342,175.19073]
[1673648460422,100.2783856,18.37,18.343,6.29038]
[1673648460634,70.3091928,18.37,18.343,6.29038]
[1673648461265,70.3091928,18.37,18.344,20.0]
[1673648461710,20.0,18.369,18.343,20.0]
[1673648462230,29.9691928,18.368,18.343,20.0]
[1673648462965,40.34,18.37,18.343,20.0]
[1673648463173,29.9691928,18.369,18.344,6.29004]
[1673648463388,29.9691928,18.369,18.345,20.0]
[1673648465383,40.34,18.37,18.346,6.28936]
[1673648465691,17.9831851,18.377,18.351,168.9]
[1673648465692,29.9691928,18.375,18.351,168.9]
[1673648465908,17.9831851,18.377,18.353,1.05326126]
[1673648466110,17.9831851,18.377,18.36,40.42]
[1673648466315,17.9831851,18.377,18.361,188.9]
[1673648466523,17.9831851,18.377,18.361,20.0]
[1673648466961,17.9831851,18.377,18.362,6.28388]
[1673648467170,17.9831851,18.377,18.362,36.2530728]
[1673648467497,17.9831851,18.377,18.363,92.3417692]
[1673648467683,17.9831851,18.377,18.364,175.18319]
[1673648467888,17.9831851,18.377,18.365,175.18285]
[1673648468109,17.9831851,18.377,18.366,6.28251]
[1673648468309,17.9831851,18.377,18.367,20.0]
[1673648468514,6.9948851,18.377,18.369,2.46798771]
[1673648468725,6.9948851,18.377,18.371,2.46798771]
[1673648468935,8.51e-05,18.377,18.373,2.46798771]
[1673648469152,8.51e-05,18.377,18.374,168.9]
[1673648469357,40.52,18.4,18.376,2.46798771]
[1673648469583,40.52,18.4,18.378,3.0775449]
[1673648469784,14.5371528,18.402,18.378,198.2559449]
[1673648469996,14.5371528,18.402,18.38,171.9775449]
[1673648470200,14.5371528,18.402,18.381,23.0775449]
[1673648470410,14.5371528,18.402,18.382,6.27704]
[1673648470955,14.5371528,18.402,18.383,23.0775449]
[1673648471576,14.5371528,18.402,18.383,198.2542449]
[1673648471985,14.5371528,18.402,18.385,3.0775449]
[1673648472205,14.5371528,18.402,18.39,40.42]
[1673648472414,14.5371528,18.402,18.391,6.27397]
[1673648472932,14.5371528,18.402,18.392,20.0]
[1673648473352,14.5371528,18.402,18.393,57.97837973]
[1673648473792,14.5371528,18.402,18.394,20.0]
[1673648473982,14.5371528,18.402,18.395,6.2726]
[1673648474318,153.3573,18.43,18.397,2.66987385]
[1673648474506,40.59,18.43,18.4,40.42]
[1673648474718,40.59,18.43,18.397,3.0775449]
[1673648474934,40.59,18.42,18.391,3.0775449]
[1673648475154,40.59,18.42,18.392,70.04841014]
[1673648475363,29.9691928,18.427,18.393,3.0775449]
[1673648475769,20.0,18.426,18.394,70.04841014]
[1673648475998,40.59,18.42,18.396,3.0775449]
[1673648476209,40.59,18.43,18.401,3.0775449]
[1673648476820,40.59,18.43,18.401,23.0775449]
[1673648477550,40.59,18.43,18.402,6.27022]
[1673648477765,40.59,18.43,18.403,23.0775449]
[1673648477975,40.59,18.43,18.403,3.0775449]
[1673648478336,40.7,18.44,18.41,40.42]
[1673648478521,19.271,18.45,18.411,20.0]
[1673648478835,40.59,18.44,18.412,3.0775449]
[1673648479025,40.59,18.44,18.412,33.0467377]
[1673648479232,40.59,18.43,18.412,3.0775449]
[1673648479438,32.0601834,18.436,18.412,3.0775449]
[1673648479439,40.59,18.42,18.412,3.0775449]
[1673648479654,40.59,18.42,18.39,160.5825]
[1673648479655,40.59,18.42,18.391,3.0775449]
[1673648479882,29.9691928,18.428,18.391,3.0775449]
[1673648479883,29.9691928,18.428,18.399,6.27124]
[1673648480089,29.9691928,18.428,18.401,3.0775449]
[1673648480704,37.51495248,18.428,18.401,23.0775449]
[1673648480927,40.59,18.43,18.402,36.2394128]
[1673648481123,40.59,18.43,18.404,3.0775449]
[1673648482187,44.5063456,18.429,18.404,3.0775449]
[1673648482381,44.5063456,18.429,18.403,20.0]
[1673648482594,44.5063456,18.429,18.401,20.0]
[1673648482912,14.5371528,18.429,18.402,9.3477649]
[1673648483118,14.5371528,18.429,18.402,6.27022]
[1673648483346,14.5371528,18.429,18.404,0.93052123]
[1673648483555,14.5371528,18.429,18.406,1.39396922]